[Event "44th Chess Olympiad Women 2022"]
[Site "Chennai"]
[Date "2022.07.29"]
[Round "1.26"]
[White "Cadeau, Merisena"]
[Black "Rozman, Monika"]
[Result "0-1"]
[WhiteElo "1439"]
[BlackElo "2104"]
[Annotator "NA RC"]
[PlyCount "86"]
[EventDate "2022.??.??"]
[TimeControl "60"]

1. e4 {[%emt 0:00:02]} e5 {[%emt 0:00:05]} 2. Nf3 {[%emt 0:00:07]} Nc6 {
[%emt 0:00:04]} 3. Bc4 {[%emt 0:00:08]} Bc5 {[%emt 0:00:06]} 4. Nc3 {[%emt 0:
00:00]} Nf6 {[%emt 0:00:35]} 5. d3 {[%emt 0:00:27]} O-O {[%emt 0:03:59]} 6. Bg5
{[%emt 0:00:12]} Be7 {[%emt 0:00:50]} 7. O-O {[%emt 0:00:27]} d6 {[%emt 0:00:
00]} 8. h3 {[%emt 0:00:28]} Na5 {[%emt 0:04:17]} 9. Bb3 {[%emt 0:00:25]} Nxb3 {
[%emt 0:07:43]} 10. axb3 {[%emt 0:02:25]} c6 {[%emt 0:02:03]} 11. Qd2 {[%emt 0:
00:00]} h6 {[%emt 0:03:44]} 12. Bh4 {[%emt 0:00:33]} Nh5 {[%emt 0:04:58]} 13.
Bxe7 {[%emt 0:00:52]} Qxe7 {[%emt 0:00:03]} 14. Rfe1 {[%emt 0:04:42]} Qf6 {
[%emt 0:01:37]} 15. Qe3 {[%emt 0:06:28]} a6 {[%emt 0:08:05]} 16. d4 {[%emt 0:
00:00]} Nf4 {[%emt 0:06:22]} 17. Kh2 {[%emt 0:12:22]} Be6 {[%emt 0:01:47]} 18.
dxe5 {[%emt 0:01:52]} dxe5 {[%emt 0:00:07]} 19. Ra5 {[%emt 0:00:24]} Ng6 {
[%emt 0:02:13]} 20. Ne2 {[%emt 0:01:24]} Rad8 {[%emt 0:02:30]} 21. Ng3 {
[%emt 0:02:26]} Bc8 {[%emt 0:02:26]} 22. Qc5 {[%emt 0:04:59]} Rfe8 {[%emt 0:00:
00]} 23. Nh5 {[%emt 0:04:40]} Qe7 {[%emt 0:02:17]} 24. Qc3 {[%emt 0:08:07]} Rd6
{[%emt 0:08:41]} 25. g3 {[%emt 0:05:24]} f6 {[%emt 0:02:55]} 26. g4 {[%emt 0:
00:00]} Red8 {[%emt 0:00:51]} 27. Raa1 {[%emt 0:01:43]} Qc7 {[%emt 0:02:50]}
28. Ng3 {[%emt 0:02:19]} Qb6 {[%emt 0:04:50]} 29. Re2 {[%emt 0:00:34]} Nf4 {
[%emt 0:00:42]} 30. Qe3 {[%emt 0:01:33]} Qxe3 {[%emt 0:08:39]} 31. Rxe3 {
[%emt 0:00:14]} g6 {[%emt 0:01:08]} 32. Ne2 {[%emt 0:00:58]} h5 {[%emt 0:02:15]
} 33. gxh5 {[%emt 0:08:47]} Nxh5 {[%emt 0:00:04]} 34. Rg1 {[%emt 0:00:47]} Kf7
{[%emt 0:00:16]} 35. Nh4 {[%emt 0:02:40]} g5 {[%emt 0:00:12]} 36. Nf5 {[%emt 0:
00:00]} Bxf5 {[%emt 0:01:01]} 37. exf5 {[%emt 0:00:08]} Rd2 {[%emt 0:00:21]}
38. Rc1 {[%emt 0:06:03]} Nf4 {[%emt 0:01:51]} 39. Ng1 {[%emt 0:06:54]} Rxf2+ {
[%emt 0:00:50]} 40. Kg3 {[%emt 0:00:17]} Rdd2 {[%emt 0:01:22]} 41. c3 {[%emt 0:
00:00]} Nh5+ {[%emt 0:30:12]} 42. Kg4 {[%emt 0:00:35]} Rf4+ {[%emt 0:00:02]}
43. Kxh5 {[%emt 0:02:35]} Rh4# {[%emt 0:00:03]} 0-1

[Event "44th Chess Olympiad Women 2022"]
[Site "Chennai"]
[Date "2022.07.29"]
[Round "1.26"]
[White "Paul, Theophane"]
[Black "Janzelj, Lara"]
[Result "0-1"]
[WhiteElo "1493"]
[BlackElo "2215"]
[Annotator "NA"]
[PlyCount "72"]
[EventDate "2022.??.??"]
[TimeControl "60"]

1. d4 {[%emt 0:00:05]} c5 {[%emt 0:00:11]} 2. Nf3 {[%emt 0:01:29]} cxd4 {
[%emt 0:00:59]} 3. Nxd4 {[%emt 0:00:22]} Nc6 {[%emt 0:01:53]} 4. e3 {[%emt 0:
00:00]} g6 {[%emt 0:00:20]} 5. Nc3 {[%emt 0:01:54]} Bg7 {[%emt 0:00:12]} 6. Bc4
{[%emt 0:01:52]} Nf6 {[%emt 0:00:54]} 7. O-O {[%emt 0:01:03]} O-O {[%emt 0:00:
00]} 8. Nf3 {[%emt 0:04:26]} b6 {[%emt 0:06:28]} 9. Qe2 {[%emt 0:04:30]} a6 {
[%emt 0:03:58]} 10. a4 {[%emt 0:02:50]} Bb7 {[%emt 0:01:18]} 11. e4 {[%emt 0:
00:00]} d6 {[%emt 0:01:47]} 12. Bf4 {[%emt 0:03:17]} Nd7 {[%emt 0:09:10]} 13.
Rfd1 {[%emt 0:10:59]} Nce5 {[%emt 0:01:29]} 14. Nxe5 {[%emt 0:07:07]} Nxe5 {
[%emt 0:00:16]} 15. Bb3 {[%emt 0:00:58]} Rc8 {[%emt 0:03:38]} 16. Qe3 {[%emt 0:
00:00]} Nc4 {[%emt 0:04:34]} 17. Bxc4 {[%emt 0:02:31]} Rxc4 {[%emt 0:04:06]}
18. e5 {[%emt 0:03:32]} d5 {[%emt 0:00:53]} 19. b3 {[%emt 0:09:39]} Rc5 {
[%emt 0:01:46]} 20. Rd3 {[%emt 0:05:17]} Rxc3 {[%emt 0:05:38]} 21. Rxc3 {
[%emt 0:03:32]} d4 {[%emt 0:00:06]} 22. Qd3 {[%emt 0:02:29]} Qd5 {[%emt 0:00:
00]} 23. Qf3 {[%emt 0:03:00]} dxc3 {[%emt 0:00:11]} 24. Qxd5 {[%emt 0:00:32]}
Bxd5 {[%emt 0:00:05]} 25. Rd1 {[%emt 0:00:49]} e6 {[%emt 0:00:18]} 26. f3 {
[%emt 0:01:29]} b5 {[%emt 0:00:52]} 27. a5 {[%emt 0:01:37]} Rc8 {[%emt 0:01:06]
} 28. Bg3 {[%emt 0:02:12]} Bf8 {[%emt 0:00:41]} 29. Bf2 {[%emt 0:01:37]} Bxb3 {
[%emt 0:00:22]} 30. cxb3 {[%emt 0:02:48]} c2 {[%emt 0:00:05]} 31. Rc1 {[%emt 0:
00:00]} Bh6 {[%emt 0:00:09]} 32. Rxc2 {[%emt 0:04:11]} Rxc2 {[%emt 0:00:06]}
33. Be1 {[%emt 0:02:29]} Bd2 {[%emt 0:00:43]} 34. Bxd2 {[%emt 0:00:32]} Rxd2 {
[%emt 0:00:04]} 35. Kf1 {[%emt 0:00:23]} Rb2 {[%emt 0:00:05]} 36. b4 {[%emt 0:
00:00]} Rxb4 {[%emt 0:00:06]} 0-1

[Event "44th Chess Olympiad Women 2022"]
[Site "Chennai"]
[Date "2022.07.29"]
[Round "1.26"]
[White "Urh, Zala"]
[Black "Seine, Rose Berline"]
[Result "1-0"]
[WhiteElo "2321"]
[BlackElo "1679"]
[Annotator "TA"]
[PlyCount "83"]
[EventDate "2022.??.??"]
[TimeControl "60"]

{[%evp 10,83,22,15,52,27,40,28,137,50,41,42,42,41,67,65,95,91,93,89,122,109,
165,130,196,147,168,147,169,145,158,150,155,150,157,157,168,160,171,93,227,209,
216,216,216,180,220,212,294,294,380,380,584,566,3628,2770,2596,2002,2384,2013,
1913,1696,29985,29981,29988,29989,29989,29990,29990,29991,29991,29992,29992,
29993,29993,29994]} 1. d4 {[%emt 0:00:10]} d5 {[%emt 0:00:15]} 2. c4 {[%emt 0:
00:00]} e6 {[%emt 0:00:20]} 3. Nc3 {[%emt 0:00:14]} Nf6 {[%emt 0:00:12]} 4. Nf3
{[%emt 0:00:12]} Be7 {[%emt 0:02:17]} 5. Bf4 {[%emt 0:00:07]} O-O {[%emt 0:00:
00]} 6. e3 {[%emt 0:00:09]} Re8 {[%emt 0:00:53] D37: Queen's Gambit Declined:
5 Bf4.} 7. Rc1 {[%emt 0:01:40]} a6 {[%emt 0:01:55]} 8. a3 {[%emt 0:04:12]} Nbd7
{[%emt 0:02:00] [#]} (8... c5 $11 {keeps the balance.}) 9. c5 $146 {[%emt 0:00:
00]} (9. cxd5 $16 Nb6 10. dxe6 Bxe6 11. Bd3) ({Predecessor:} 9. Bd3 dxc4 10.
Bxc4 b5 11. Bd3 Nf8 12. Ne4 Nd5 13. Bg3 Bb7 14. Nc5 Bxc5 15. Rxc5 {½-½ (57)
Vitak,J (1519)-Pravda,K Hrdonov 2012}) 9... Nh5 $14 {[%emt 0:01:50]} 10. Bd3 {
[%emt 0:03:41][%cal Yd3h7]} Nxf4 {[%emt 0:00:54]} 11. exf4 {[%emt 0:00:06]} c6
{[%emt 0:01:58]} 12. Qc2 {[%emt 0:03:38]} Nf8 {[%emt 0:01:20]} 13. O-O {
[%emt 0:03:10]} Qc7 {[%emt 0:01:01]} 14. g3 {[%emt 0:01:12]} Ng6 {[%emt 0:00:
00]} 15. Rfe1 {[%emt 0:04:44]} Bd7 {[%emt 0:08:07]} (15... Bd8 $16) 16. Na4 {
[%emt 0:03:33]} Bf6 {[%emt 0:10:14]} (16... Nf8 $16 17. h4 Red8) 17. Ne5 {
[%emt 0:02:38]} (17. Nb6 $18) 17... Rad8 {[%emt 0:03:04]} 18. Nb6 {[%emt 0:00:
00]} Bc8 {[%emt 0:00:12]} 19. h4 {[%emt 0:02:21][%cal Yh2h4,Yh4h5]} Nf8 {
[%emt 0:04:05]} 20. h5 {[%emt 0:01:12]} h6 {[%emt 0:00:49]} 21. Kg2 {[%emt 0:
01:20]} Qe7 {[%emt 0:04:57]} 22. b4 {[%emt 0:02:51] White is much more active.}
Bxe5 {[%emt 0:01:52]} 23. fxe5 {[%emt 0:00:48]} f6 {[%emt 0:02:20]} 24. exf6 {
[%emt 0:02:15]} (24. f4 $18) 24... Qxf6 {[%emt 0:00:17] This move loses the
game for Black.} (24... gxf6 $16 25. Bg6 Nxg6 26. hxg6 (26. Qxg6+ Qg7 $14)
26... e5) 25. Re5 {[%emt 0:00:15]} Nd7 {[%emt 0:00:58]} 26. Nxd7 {[%emt 0:00:
00]} Bxd7 {[%emt 0:00:24]} 27. Qe2 {[%emt 0:00:36]} Re7 {[%emt 0:07:02]} 28.
Bb1 {[%emt 0:03:31]} Rf8 {[%emt 0:00:52]} 29. f4 {[%emt 0:02:07]} Be8 {[%emt 0:
00:00]} 30. Re1 {[%emt 0:02:36] Strongly threatening Qc2.} Bf7 {[%emt 0:01:48]}
(30... g5 $142 31. f5 Bd7 32. fxe6 Be8) 31. Qd3 $18 {[%emt 0:04:58][%csl Gb1]
[%cal Rd3h7] [#]} Rfe8 {[%emt 0:11:00]} 32. Qh7+ {[%emt 0:02:12]} Kf8 {[%emt 0:
00:00]} 33. Qh8+ {[%emt 0:00:22]} Bg8 {[%emt 0:00:21]} 34. Bh7 {[%emt 0:00:27]
[%csl Gh7][%cal Rh8g8]} Kf7 {[%emt 0:01:27]} 35. Bg6+ {[%emt 0:00:09]} Kf8 {
[%emt 0:00:20]} 36. f5 {[%emt 0:00:40] White mates.} Rf7 {[%emt 0:11:09]} 37.
Rxe6 {[%emt 0:00:38]} Rxe6 {[%emt 0:00:59]} 38. Rxe6 {[%emt 0:00:08]} Qxd4 {
[%emt 0:00:55]} 39. Bh7 {[%emt 0:01:19][%csl Gh7][%cal Rh8g8]} Qe4+ {[%emt 0:
00:00]} 40. Rxe4 {[%emt 0:00:10]} dxe4 {[%emt 0:00:10]} 41. Qxg8+ {[%emt 0:00:
00]} Ke7 {[%emt 0:30:35]} 42. Bg6 {[%emt 0:00:05] Weighted Error Value:
White=0.12 (very precise) /Black=0.49} 1-0

[Event "44th Chess Olympiad Women 2022"]
[Site "Chennai"]
[Date "2022.07.29"]
[Round "1.26"]
[White "Vidic, Teja"]
[Black "Jonet, Davena"]
[Result "1-0"]
[WhiteElo "2099"]
[BlackElo "1458"]
[Annotator "NA RC"]
[PlyCount "69"]
[EventDate "2022.??.??"]
[TimeControl "60"]

1. e4 {[%emt 0:00:03]} d5 {[%emt 0:00:19]} 2. exd5 {[%emt 0:00:08]} Qxd5 {
[%emt 0:00:16]} 3. Nc3 {[%emt 0:00:06]} Qd8 {[%emt 0:00:25]} 4. d4 {[%emt 0:00:
00]} Bf5 {[%emt 0:00:23]} 5. Nf3 {[%emt 0:04:51]} Nf6 {[%emt 0:01:04]} 6. Bd3 {
[%emt 0:00:35]} Bxd3 {[%emt 0:02:16]} 7. Qxd3 {[%emt 0:00:02]} Nc6 {[%emt 0:00:
00]} 8. d5 {[%emt 0:01:12]} Nb8 {[%emt 0:03:20]} 9. Qb5+ {[%emt 0:04:08]} Nbd7
{[%emt 0:03:05]} 10. Qxb7 {[%emt 0:00:30]} g6 {[%emt 0:02:32]} 11. Nb5 {
[%emt 0:04:00]} Qc8 {[%emt 0:24:46]} 12. Nxc7+ {[%emt 0:05:07]} Kd8 {[%emt 0:
00:00]} 13. Qxa8 {[%emt 0:00:00]} Kxc7 {[%emt 0:05:25]} 14. Qxa7+ {[%emt 0:00:
00]} Kd8 {[%emt 0:16:00]} 15. O-O {[%emt 0:01:20]} h5 {[%emt 0:05:44]} 16. Be3
{[%emt 0:05:23]} Ke8 {[%emt 0:04:39]} 17. Rfd1 {[%emt 0:00:00]} Bg7 {[%emt 0:
00:00]} 18. c4 {[%emt 0:01:21]} Ne4 {[%emt 0:03:08]} 19. Bd4 {[%emt 0:01:14]}
f6 {[%emt 0:06:05]} 20. c5 {[%emt 0:03:10]} Kf7 {[%emt 0:03:14]} 21. c6 {
[%emt 0:00:39]} Ne5 {[%emt 0:01:28]} 22. Bxe5 {[%emt 0:00:37]} fxe5 {[%emt 0:
00:00]} 23. d6 {[%emt 0:00:21]} Bf6 {[%emt 0:02:41]} 24. Nxe5+ {[%emt 0:02:36]}
Ke6 {[%emt 0:01:53]} 25. d7 {[%emt 0:00:25]} Qb8 {[%emt 0:02:03]} 26. Qxb8 {
[%emt 0:00:13]} Rxb8 {[%emt 0:00:29]} 27. c7 {[%emt 0:00:17]} Rg8 {[%emt 0:00:
00]} 28. c8=Q {[%emt 0:05:53]} Rxc8 {[%emt 0:00:52]} 29. dxc8=Q+ {[%emt 0:00:
00]} Kxe5 {[%emt 0:00:55]} 30. g3 {[%emt 0:00:19]} Bg5 {[%emt 0:00:27]} 31. f4+
{[%emt 0:00:06]} Bxf4 {[%emt 0:00:36]} 32. gxf4+ {[%emt 0:00:54]} Kxf4 {
[%emt 0:00:10]} 33. Rd4 {[%emt 0:00:26]} Kf3 {[%emt 0:00:35]} 34. Qh3+ {
[%emt 0:00:24]} Ke2 {[%emt 0:00:13]} 35. Qd3# {[%emt 0:00:42]} 1-0

[Event "44th Chess Olympiad Women 2022"]
[Site "Chennai"]
[Date "2022.07.29"]
[Round "1.27"]
[White "Avramidou, Anastasia"]
[Black "Farrugia, Jamie"]
[Result "1-0"]
[WhiteElo "2274"]
[BlackElo "1547"]
[Annotator "ChessBase"]
[PlyCount "65"]
[EventDate "2022.??.??"]
[TimeControl "60"]

1. Nf3 {[%emt 0:00:05]} Nf6 {[%emt 0:00:17]} 2. c4 {[%emt 0:00:17]} c6 {
[%emt 0:00:16]} 3. g3 {[%emt 0:00:12]} d5 {[%emt 0:00:37]} 4. Bg2 {[%emt 0:00:
00]} Nbd7 {[%emt 0:02:00]} 5. Qc2 {[%emt 0:07:42]} e5 {[%emt 0:01:07]} 6. d3 {
[%emt 0:03:03]} Be7 {[%emt 0:06:18]} 7. O-O {[%emt 0:05:02]} O-O {[%emt 0:00:
00]} 8. cxd5 {[%emt 0:13:29]} Nxd5 {[%emt 0:11:43]} 9. Nbd2 {[%emt 0:02:44]}
Kh8 {[%emt 0:41:12]} 10. b3 {[%emt 0:08:26]} Nb4 {[%emt 0:06:28]} 11. Qd1 {
[%emt 0:02:09]} f5 {[%emt 0:02:28]} 12. Bb2 {[%emt 0:07:05]} Qc7 {[%emt 0:00:
00]} 13. Nc4 {[%emt 0:08:38]} Bf6 {[%emt 0:01:31]} 14. Qd2 {[%emt 0:00:13]} Na6
{[%emt 0:02:02]} 15. Rac1 {[%emt 0:03:11]} Re8 {[%emt 0:03:03]} 16. Rfd1 {
[%emt 0:10:49]} f4 {[%emt 0:02:38]} 17. Bc3 {[%emt 0:07:08]} Rb8 {[%emt 0:00:
00]} 18. Qb2 {[%emt 0:05:18]} e4 {[%emt 0:01:38]} 19. dxe4 {[%emt 0:00:06]}
Rxe4 {[%emt 0:00:51]} 20. Nfe5 {[%emt 0:02:31]} fxg3 {[%emt 0:01:02]} 21. Bxe4
{[%emt 0:01:34]} gxf2+ {[%emt 0:00:35]} 22. Kh1 {[%emt 0:00:09]} Ndc5 {[%emt 0:
00:00]} 23. Bg2 {[%emt 0:00:39]} Be6 {[%emt 0:01:32]} 24. Nf3 {[%emt 0:01:54]}
Ne4 {[%emt 0:00:47]} 25. Bxf6 {[%emt 0:00:24]} Nxf6 {[%emt 0:00:11]} 26. Qe5 {
[%emt 0:00:09]} Qe7 {[%emt 0:01:18]} 27. Bh3 {[%emt 0:03:40]} Re8 {[%emt 0:00:
00]} 28. Qxe6 {[%emt 0:00:08]} Qxe6 {[%emt 0:00:26]} 29. Bxe6 {[%emt 0:00:06]}
Rxe6 {[%emt 0:00:02]} 30. Rd8+ {[%emt 0:00:09]} Ng8 {[%emt 0:00:06]} 31. Nce5 {
[%emt 0:00:26]} h6 {[%emt 0:00:47]} 32. Nf7+ {[%emt 0:01:01]} Kh7 {[%emt 0:00:
00]} 33. N7g5+ {[%emt 0:00:06]} 1-0

[Event "44th Chess Olympiad Women 2022"]
[Site "Chennai"]
[Date "2022.07.29"]
[Round "1.27"]
[White "Stagno, Milena"]
[Black "Pavlidou, Ekaterini"]
[Result "0-1"]
[WhiteElo "1448"]
[BlackElo "2138"]
[Annotator "NA"]
[PlyCount "81"]
[EventDate "2022.??.??"]
[TimeControl "60"]

1. e4 {[%emt 0:00:05]} c5 {[%emt 0:00:27]} 2. c3 {[%emt 0:00:24]} d5 {[%emt 0:
00:00]} 3. exd5 {[%emt 0:00:36]} Qxd5 {[%emt 0:00:13]} 4. d4 {[%emt 0:00:46]}
Nc6 {[%emt 0:00:56]} 5. Nf3 {[%emt 0:00:27]} Bg4 {[%emt 0:00:53]} 6. Be2 {
[%emt 0:01:25]} cxd4 {[%emt 0:00:21]} 7. cxd4 {[%emt 0:00:53]} e6 {[%emt 0:00:
00]} 8. Nc3 {[%emt 0:01:17]} Bb4 {[%emt 0:01:02]} 9. Bd2 {[%emt 0:01:11]} Bxc3
{[%emt 0:01:29]} 10. bxc3 {[%emt 0:03:24]} Nf6 {[%emt 0:04:38]} 11. O-O {
[%emt 0:06:07]} O-O {[%emt 0:01:15]} 12. c4 {[%emt 0:02:23]} Qe4 {[%emt 0:00:
00]} 13. Be3 {[%emt 0:04:59]} Rfd8 {[%emt 0:05:34]} 14. Qd2 {[%emt 0:07:50]}
Qg6 {[%emt 0:07:53]} 15. h3 {[%emt 0:03:39]} Bxh3 {[%emt 0:11:38]} 16. Nh4 {
[%emt 0:01:02]} Qe4 {[%emt 0:00:10]} 17. Nf3 {[%emt 0:00:21]} Qg4 {[%emt 0:00:
00]} 18. Ne1 {[%emt 0:02:38]} Qg6 {[%emt 0:00:09]} 19. Bd3 {[%emt 0:01:32]} Bf5
{[%emt 0:00:19]} 20. Bxf5 {[%emt 0:04:09]} Qxf5 {[%emt 0:00:35]} 21. Nf3 {
[%emt 0:02:22]} Ne4 {[%emt 0:10:35]} 22. Qb2 {[%emt 0:03:50]} Rac8 {[%emt 0:00:
00]} 23. Rac1 {[%emt 0:18:50]} b6 {[%emt 0:01:21]} 24. Qb5 {[%emt 0:07:15]}
Qxb5 {[%emt 0:02:30]} 25. cxb5 {[%emt 0:00:09]} Ne7 {[%emt 0:02:52]} 26. Ne5 {
[%emt 0:03:10]} Nd5 {[%emt 0:05:06]} 27. Nc6 {[%emt 0:00:58]} Rd7 {[%emt 0:00:
00]} 28. Nxa7 {[%emt 0:03:35]} Rxc1 {[%emt 0:01:21]} 29. Rxc1 {[%emt 0:00:05]}
Nec3 {[%emt 0:00:37]} 30. Nc6 {[%emt 0:03:23]} Ne2+ {[%emt 0:00:09]} 31. Kf1 {
[%emt 0:00:51]} Nxc1 {[%emt 0:00:08]} 32. Bxc1 {[%emt 0:00:04]} Nc3 {[%emt 0:
00:00]} 33. Be3 {[%emt 0:02:33]} Nxb5 {[%emt 0:00:54]} 34. Ne5 {[%emt 0:01:04]}
Ra7 {[%emt 0:00:22]} 35. Nc4 {[%emt 0:00:46]} Nc3 {[%emt 0:01:15]} 36. Nxb6 {
[%emt 0:05:48]} Rxa2 {[%emt 0:00:11]} 37. Kg1 {[%emt 0:00:14]} Nd1 {[%emt 0:00:
00]} 38. Nc4 {[%emt 0:01:48]} Rc2 {[%emt 0:00:19]} 39. Nd6 {[%emt 0:01:47]} f5
{[%emt 0:01:48]} 40. Kf1 {[%emt 0:01:34]} f4 {[%emt 0:00:26]} 41. Ke1 {[%emt 0:
00:00]} 0-1

[Event "44th Chess Olympiad Women 2022"]
[Site "Chennai"]
[Date "2022.07.29"]
[Round "1.27"]
[White "Thornton, Filipina"]
[Black "Tsolakidou, Stavroula"]
[Result "0-1"]
[WhiteElo "1661"]
[BlackElo "2362"]
[Annotator "TA"]
[PlyCount "36"]
[EventDate "2022.??.??"]
[TimeControl "60"]

{[%evp 21,36,16,17,-41,-30,-223,-207,-230,-231,-253,-249,-306,-283,-737,-735,
-870,-862]} 1. d4 {[%emt 0:00:02]} Nf6 {[%emt 0:00:06]} 2. c4 {[%emt 0:00:05]}
e6 {[%emt 0:00:05]} 3. Nc3 {[%emt 0:00:04]} Bb4 {[%emt 0:00:08]} 4. Qc2 {
[%emt 0:00:46]} d6 {[%emt 0:06:02]} 5. a3 {[%emt 0:03:10]} Bxc3+ {[%emt 0:00:
00]} 6. Qxc3 {[%emt 0:00:09]} Nbd7 {[%emt 0:01:17]} 7. Nf3 {[%emt 0:00:50]} b6
{[%emt 0:01:15][%cal Yb7b6,Yb6c5,Yc5d4]} 8. g3 {[%emt 0:03:39]} Bb7 {[%emt 0:
01:21]} 9. Bg2 {[%emt 0:00:13]} O-O {[%emt 0:02:56]} 10. O-O {[%emt 0:00:00]}
Rc8 {[%emt 0:13:10]} 11. b4 {[%emt 0:03:45]} c5 {[%emt 0:02:03] [#]} 12. bxc5
$146 {[%emt 0:05:34] E32: Nimzo-Indian: Classical (4 Qc2): 4...0-0.} ({Better
is} 12. Bb2 $11) ({Predecessor:} 12. Bb2 d5 13. dxc5 bxc5 14. cxd5 cxb4 15. Qe3
Bxd5 16. axb4 Rc4 17. Qa3 Qb6 18. Qxa7 Rxb4 19. Qxb6 Rxb6 {½-½ (65) Nguyen,N
(2633)-Kovalyov,A (2617) Baku 2016}) 12... bxc5 {[%emt 0:03:19]} 13. Bf4 $2 {
[%emt 0:04:24] [#]} (13. Rd1 $11 {and White is okay.}) 13... cxd4 $19 {[%emt 0:
02:25]} 14. Qb4 {[%emt 0:01:38] Black is clearly better.} Nc5 {[%emt 0:00:00]}
15. Rfd1 {[%emt 0:19:29]} ({But not} 15. Nxd4 Bxg2 16. Kxg2 e5 $19) 15... e5 {
[%emt 0:01:04]} 16. Bc1 {[%emt 0:01:23]} Qc7 {[%emt 0:01:51]} 17. Nd2 $2 {
[%emt 0:14:53] [#]} (17. Qe1) 17... Bxg2 {[%emt 0:00:25]} 18. Kxg2 {[%emt 0:00:
14]} Rb8 {[%emt 0:00:06] White did not feel at home in the position after the
opening. Weighted Error Value: White=1.27/Black=0.00 (flawless)} 0-1

[Event "44th Chess Olympiad Women 2022"]
[Site "Chennai"]
[Date "2022.07.29"]
[Round "1.28"]
[White "Al Ghafri, Alanoud"]
[Black "Munkhzul, Turmunkh"]
[Result "0-1"]
[WhiteElo "1259"]
[BlackElo "2277"]
[Annotator "NA RC"]
[PlyCount "58"]
[EventDate "2022.??.??"]
[TimeControl "60"]

1. e4 {[%emt 0:00:03]} c5 {[%emt 0:00:25]} 2. b3 {[%emt 0:00:55]} d6 {[%emt 0:
00:00]} 3. Nf3 {[%emt 0:03:03]} Nf6 {[%emt 0:01:47]} 4. Nc3 {[%emt 0:01:23]} g6
{[%emt 0:00:57]} 5. Bd3 {[%emt 0:03:45]} Bg7 {[%emt 0:00:16]} 6. O-O {[%emt 0:
00:00]} O-O {[%emt 0:00:26]} 7. h3 {[%emt 0:00:06]} Nc6 {[%emt 0:01:35]} 8. Bb2
{[%emt 0:02:33]} Nh5 {[%emt 0:05:35]} 9. Rb1 {[%emt 0:15:10]} e5 {[%emt 0:00:
00]} 10. Ne2 {[%emt 0:04:39]} Nb4 {[%emt 0:01:28]} 11. Bc4 {[%emt 0:06:35]} Be6
{[%emt 0:02:24]} 12. Bxe6 {[%emt 0:03:31]} fxe6 {[%emt 0:00:05]} 13. a3 {
[%emt 0:01:03]} Nc6 {[%emt 0:00:47]} 14. d3 {[%emt 0:08:11]} Qe7 {[%emt 0:00:
00]} 15. Qd2 {[%emt 0:02:06]} Nf4 {[%emt 0:06:20]} 16. Nxf4 {[%emt 0:01:55]}
Rxf4 {[%emt 0:00:06]} 17. Qe2 {[%emt 0:04:59]} Raf8 {[%emt 0:02:47]} 18. Bc1 {
[%emt 0:07:01]} Rxf3 {[%emt 0:03:43]} 19. gxf3 {[%emt 0:00:26]} Nd4 {[%emt 0:
00:00]} 20. Qe3 {[%emt 0:10:46]} Rf4 {[%emt 0:02:19]} 21. Qxf4 {[%emt 0:07:51]}
exf4 {[%emt 0:03:43]} 22. Bxf4 {[%emt 0:00:07]} Ne2+ {[%emt 0:00:03]} 23. Kh2 {
[%emt 0:00:51]} Nxf4 {[%emt 0:00:05]} 24. Rg1 {[%emt 0:01:25]} Be5 {[%emt 0:00:
00]} 25. Kh1 {[%emt 0:05:14]} Qh4 {[%emt 0:00:21]} 26. Rg2 {[%emt 0:01:59]}
Qxh3+ {[%emt 0:00:13]} 27. Rh2 {[%emt 0:00:11]} Qxf3+ {[%emt 0:00:04]} 28. Kg1
{[%emt 0:00:22]} Ne2+ {[%emt 0:00:07]} 29. Kf1 {[%emt 0:00:19]} Bxh2 {[%emt 0:
00:00]} 0-1

[Event "44th Chess Olympiad Women 2022"]
[Site "Chennai"]
[Date "2022.07.29"]
[Round "1.28"]
[White "Bayarmaa, Bayarjargal"]
[Black "Al Aisaee, Anat"]
[Result "1-0"]
[WhiteElo "2171"]
[BlackElo "1681"]
[Annotator "RC"]
[PlyCount "73"]
[EventDate "2022.??.??"]
[TimeControl "60"]

1. d4 {[%emt 0:00:12]} d5 {[%emt 0:00:14]} 2. c4 {[%emt 0:00:06]} e6 {[%emt 0:
00:00]} 3. Nc3 {[%emt 0:00:06]} Nf6 {[%emt 0:00:18]} 4. Bg5 {[%emt 0:01:02]}
Be7 {[%emt 0:00:41]} 5. Nf3 {[%emt 0:00:15]} h6 {[%emt 0:01:11]} 6. Bh4 {
[%emt 0:02:15]} O-O {[%emt 0:01:45]} 7. e3 {[%emt 0:00:08]} b6 {[%emt 0:00:45]}
8. cxd5 {[%emt 0:00:20]} Nxd5 {[%emt 0:00:22]} 9. Bxe7 {[%emt 0:00:42]} Qxe7 {
[%emt 0:00:10]} 10. Nxd5 {[%emt 0:07:43]} exd5 {[%emt 0:00:45]} 11. Rc1 {
[%emt 0:00:13]} Be6 {[%emt 0:02:44]} 12. Qc2 {[%emt 0:03:36]} Rc8 {[%emt 0:00:
00]} 13. Bd3 {[%emt 0:01:17]} c5 {[%emt 0:05:56]} 14. Qd2 {[%emt 0:01:23]} Nd7
{[%emt 0:06:19]} 15. O-O {[%emt 0:06:13]} c4 {[%emt 0:10:22]} 16. Bb1 {[%emt 0:
00:00]} Nf6 {[%emt 0:08:25]} 17. Ne5 {[%emt 0:01:46]} Qb7 {[%emt 0:15:27]} 18.
f3 {[%emt 0:04:03]} b5 {[%emt 0:04:52]} 19. g4 {[%emt 0:06:58]} Rc7 {[%emt 0:
00:00]} 20. Kh1 {[%emt 0:01:53]} g5 {[%emt 0:05:24]} 21. h4 {[%emt 0:09:21]}
Nd7 {[%emt 0:05:20]} 22. Nxd7 {[%emt 0:07:15]} Rxd7 {[%emt 0:00:36]} 23. Qc2 {
[%emt 0:00:11]} Kf8 {[%emt 0:05:47]} 24. Qh7 {[%emt 0:01:03]} Ke7 {[%emt 0:00:
00]} 25. Qxh6 {[%emt 0:00:55]} gxh4 {[%emt 0:01:10]} 26. Qxh4+ {[%emt 0:01:27]}
Kd6 {[%emt 0:00:12]} 27. Qf6 {[%emt 0:00:32]} Rdd8 {[%emt 0:01:30]} 28. Kg2 {
[%emt 0:00:30]} Qa6 {[%emt 0:03:25]} 29. Rf2 {[%emt 0:01:48]} Rh8 {[%emt 0:00:
00]} 30. e4 {[%emt 0:00:59]} Qb7 {[%emt 0:00:31]} 31. exd5 {[%emt 0:00:21]}
Qxd5 {[%emt 0:00:26]} 32. Be4 {[%emt 0:00:16]} Qxe4 {[%emt 0:04:50]} 33. fxe4 {
[%emt 0:00:09]} Rag8 {[%emt 0:00:27]} 34. Rf4 {[%emt 0:04:00]} Kd7 {[%emt 0:00:
00]} 35. Kg3 {[%emt 0:00:34]} Rh7 {[%emt 0:00:23]} 36. d5 {[%emt 0:00:11]} Rg6
{[%emt 0:00:24]} 37. dxe6+ {[%emt 0:00:08]} 1-0